Cogmind - Beta 16.1 @@@ ROGUE MODE // 2026.04.11 @ 19:29:03 Player: beans Result: Destroyed by as-50809 with Assembled Maul Performance ------------- Evolutions (1) 500 Regions Visited (3) 600 Robots Destroyed (52) 260 Value Destroyed (1060) 1060 Prototype IDs (1) 20 Alien Tech Used (0) 0 Bonus (0) 0 TOTAL SCORE: 2440 Bonus ------- None Cogmind --------- Core Integrity 0/400 Matter 241/300 Energy 99/100 System Corruption 17% Temperature Cool (0) Movement Core (50) Location -9/Mines Parts ------- > --- POWER (1) -------- (None) > --- PROPULSION (2) --- (None) > --- UTILITY (3) ------ (None) > --- WEAPON (3) ------- (None) > --- INVENTORY (5) ---- Improved Medium Laser Peak State ------------ > --- POWER ------------ Light Ion Engine > --- PROPULSION ------- Wheel Wheel > --- UTILITY ---------- Improved Targeting Computer Improved Targeting Computer Improved Targeting Computer > --- WEAPON ----------- Heavy Assault Rifle Heavy Assault Rifle Improved Light Cannon > --- INVENTORY -------- Improved Medium Laser Light Assault Rifle Grenade Launcher [Rating: 15] Favorites ----------- Power Light Ion Engine Engine Light Ion Engine Propulsion Light Treads Treads Light Treads Wheel Wheel Utility Improved Targeting Computer Processor Improved Targeting Computer Weapon Light Assault Rifle Energy Gun Improved Medium Laser Ballistic Gun Light Assault Rifle Ballistic Cannon Improved Light Cannon Launcher Grenade Launcher Build | -11 -10 -9 -9 ------- Run | Yrd Mat Mat Min Slots Evolved 2 | . . 2 . Power . | . . . . Propulsion . | . . . . Utility 1 | . . 1 . Weapon 1 | . . 1 . Parts Attached 16 | 4 3 9 . Power 1 | . . 1 . Engine 1 | . . 1 . Core . | . . . . Reactor . | . . . . Propulsion 4 | 2 . 2 . Treads 2 | 2 . . . Leg . | . . . . Wheel 2 | . . 2 . Hover . | . . . . Flight . | . . . . Utility 4 | . 2 2 . Device . | . . . . Storage . | . . . . Processor 4 | . 2 2 . Hackware . | . . . . Protection . | . . . . Artifact . | . . . . Weapon 7 | 2 1 4 . Energy Gun 1 | . . 1 . Energy Cannon . | . . . . Ballistic Gun 4 | 2 . 2 . Ballistic Cannon 1 | . . 1 . Launcher 1 | . 1 . . Special Weapon . | . . . . Impact Weapon . | . . . . Slashing Weapon . | . . . . Piercing Weapon . | . . . . Special Melee Weapon . | . . . . Unidentified Prototypes 1 | . . 1 . Parts Lost 15 | . . 4 11 Power 1 | . . . 1 Propulsion 4 | . . 2 2 Utility 4 | . . 1 3 Weapon 6 | . . 1 5 Highest Loss Streak 6 | . . 2 6 To Critical Strikes . | . . . . Average Backups 2 | . 1 2 2 Power . | . . . . Propulsion . | . . . . Utility . | . . . . Weapon 1 | . . 2 2 Tool/Special . | . . . . Unused Backups . | . . . . Power . | . . . . Propulsion . | . . . . Utility . | . . . . Weapon . | . . . . Tool/Special . | . . . . Average Slot Usage (%) 67 | . 55 74 69 Engine 1 | . . . 5 Treads 17 | . 22 20 . Wheel 2 | . . . 12 Processor 21 | . 4 29 27 Ballistic Gun 15 | . 18 13 13 Ballistic Cannon 5 | . . 7 8 Launcher 4 | . 9 2 1 Peak Build Rating 15 | 4 8 15 15 Average Rating 8 | 3 4 10 9 On Entrance 6 | . 4 8 15 Avg Prop Armor Cover (%) . | . . . . Naked Turns 4 | . . . 4 Heaviest Build 13 | 3 5 13 13 Greatest Support 40 | 40 40 40 20 Greatest Overweight (x) 3 | . . 3 2 Average Overweight (x) . | . . . . Largest Inventory Capacity 5 | 5 5 5 5 Average Capacity 5 | 5 5 5 5 Most Carried 5 | 4 5 5 3 Average Carried 2 | . 1 2 1 Final Capacity 5 | 5 5 5 5 Final Carried 3 | . 3 3 1 Class Distribution -------------------- 76% | Mutant 23% | Gunner Dominant Class ---------------- Mutant | -10/Materials Mutant | -9/Materials Gunner | -9/Mines Resources | -11 -10 -9 -9 ----------- Run | Yrd Mat Mat Min Matter Collected 1010 | 221 125 445 219 Remotely . | . . . . Salvage Created 1246 | . 368 695 183 Parts 95 | . 27 65 3 Haulers Intercepted 3 | . 1 2 . Recyclers Shooed 1 | . 1 . . Parts Field Recycled . | . . . . Retrieved Matter . | . . . . Parts Self-Destructed . | . . . . Prevented . | . . . . Parts Restored . | . . . . Kills | -11 -10 -9 -9 ------- Run | Yrd Mat Mat Min Combat Hostiles Destroyed 34 | . 5 17 12 Guns 8 | . . 5 3 Cannons 13 | . . 6 7 AOE 13 | . 5 6 2 Classes Destroyed 12 | . 7 4 1 Worker 6 | . 4 2 . Builder 8 | . 2 6 . Tunneler 1 | . . 1 . Hauler 3 | . 1 2 . Recycler 2 | . 2 . . Operator 1 | . 1 . . Watcher 6 | . 3 3 . Swarmer 5 | . . 5 . Grunt 16 | . 5 8 3 Brawler 1 | . . 1 . Sentry 3 | . . 3 . Assembled 9 | . . . 9 Best Kill Streak 11 | . 10 11 5 Combat Bots Only 5 | . 4 5 5 Max Kills in Single Turn 3 | . 3 3 2 Gunslinging . | . . . . Exploded 3 | . 2 3 1 Melee . | . . . . Uniques/NPCs Destroyed . | . . . . Combat | -11 -10 -9 -9 -------- Run | Yrd Mat Mat Min Hostile Shots Fired 130 | . 18 65 47 Missed 34 | . 6 21 7 Hits 96 | . 12 44 40 Melee 13 | . . . 13 Projectile 83 | . 12 44 27 Critical Strikes 1 | . . 1 . Damage Taken 1516 | . 216 553 747 Core 449 | . 47 84 318 Absorbed by Shields . | . . . . Core Remaining (%) 90 | 100 81 . . Volleys Fired 100 | . 23 52 25 Largest 3 | . 2 3 3 Hottest 83 | . 40 79 83 Shots Fired 194 | . 30 118 46 Gun 114 | . 14 71 29 Cannon 55 | . . 40 15 Launcher 25 | . 16 7 2 Special . | . . . . Kinetic 169 | . 14 111 44 Thermal . | . . . . Explosive 25 | . 16 7 2 Electromagnetic . | . . . . Robot Hit Streak 14 | . 8 14 9 Robot Miss Streak 3 | . 2 3 2 Penetration Max . | . . . . Secondary Targets 1 | . 1 . . Max Gunslinging Chain 1 | . 1 . . Shots Hit Robots 104 | . 14 66 24 Core Hits 100 | . 33 42 25 Critical Kills . | . . . . Critical Parts Destroyed . | . . . . Critical Strikes 1 | . . 1 . Blast 1 | . . 1 . Melee Attacks . | . . . . Impact . | . . . . Slashing . | . . . . Piercing . | . . . . Sneak Attacks . | . . . . Combat Hostiles . | . . . . Follow-up Attacks . | . . . . Damage Inflicted 3211 | . 1157 1566 488 Guns 716 | . 88 469 159 Cannons 853 | . . 648 205 Explosions 1642 | . 1069 449 124 Melee . | . . . . Ramming . | . . . . Kinetic 1569 | . 88 1117 364 Thermal . | . . . . Explosive 1642 | . 1069 449 124 Electromagnetic . | . . . . Impact . | . . . . Slashing . | . . . . Piercing . | . . . . Highest Corruption 17 | . . . 17 Average Corruption 7 | . . . 7 Corruption Purged . | . . . . Corruption Blocked . | . . . . Effects 5 | . . . 5 Message Errors 1 | . . . 1 Parts Rejected 2 | . . . 2 Data Loss (minor) 1 | . . . 1 Misdirections 1 | . . . 1 Overload Shots . | . . . . Overflow Damage 244 | . 138 106 . Projectiles 16 | . . 16 . Explosions 228 | . 138 90 . Melee . | . . . . Knockbacks 7 | . . 5 2 Impact . | . . . . Kinetic 7 | . . 5 2 Secondary . | . . . . Self-Inflicted Damage 171 | . 42 90 39 Shots 7 | . 5 1 1 Rammed . | . . . . Targets Rammed . | . . . . Kicked . | . . . . Crushed . | . . . . Highest Temperature 76 | . . 12 76 Average Temperature 14 | . . 5 21 Received Heat Transfer 489 | . 102 126 261 Siege Activations . | . . . . Martial Activations . | . . . . Shielding Activations . | . . . . Robots Disrupted . | . . . . Combat Hostiles . | . . . . Robots Corrupted . | . . . . Combat Hostiles . | . . . . Parts Fried . | . . . . Impact Corruptions . | . . . . Robots Melted . | . . . . Combat Hostiles . | . . . . Parts Melted . | . . . . Heat Transferred . | . . . . Parts Sabotaged . | . . . . Parts Stolen . | . . . . Parts Stripped . | . . . . Power Chain Reactions . | . . . . Alert | -11 -10 -9 -9 ------- Run | Yrd Mat Mat Min Maximum Alert Level 1 | . . 1 . Low Security (%) 80 | 100 100 60 100 Level 1 19 | . . 39 . Level 2 . | . . . . Level 3 . | . . . . Level 4 . | . . . . Level 5 . | . . . . High Security . | . . . . Max Security . | . . . . Peak Influence 364 | . 192 364 138 Initial 138 | . . 59 138 Average 138 | . 105 192 81 Influence Increases 955 | . 272 599 84 Destroy 0b10 Robot/C 500 | . 100 340 60 Destroy 0b10 Robot/NC 135 | . 65 70 . Destroy Leader 128 | . 38 80 10 Disable Machine 90 | . 15 75 . Destroy Structure 102 | . 54 34 14 Influence Decreases 923 | . 130 385 408 Entered New Map 301 | . . 83 218 Time Decay 472 | . 130 262 80 Lost Part 150 | . . 40 110 Squads Dispatched 3 | . 2 1 . Investigation . | . . . . Extermination . | . . . . Reinforcement 3 | . 2 1 . Assault . | . . . . Garrison . | . . . . Intercept . | . . . . Searches Triggered . | . . . . Construction Impeded . | . . . . Haulers Reinforced . | . . . . Active Scanning Responses . | . . . . Cargo Convoy Interrupts . | . . . . Stealth | -11 -10 -9 -9 --------- Run | Yrd Mat Mat Min Distress Signals 3 | . 1 2 . Communications Jammed . | . . . . Distress Signals . | . . . . Times Spotted 57 | . 11 25 21 Peak Tracking Total 17 | . 6 6 17 Tactical Retreats 2 | . . . 2 Traps | -11 -10 -9 -9 ------- Run | Yrd Mat Mat Min Traps Triggered 1 | . 1 . . Indirectly . | . . . . Trap Hack Attempts . | . . . . Triggered . | . . . . Disarmed . | . . . . Reprogrammed . | . . . . Reused . | . . . . Traps Extracted . | . . . . Installed . | . . . . Triggered . | . . . . Machines | -11 -10 -9 -9 ---------- Run | Yrd Mat Mat Min Machines Disabled 6 | . 1 5 . Max in Single Turn 4 | . 1 4 . Machines Repaired . | . . . . Machines Dismantled . | . . . . Machines Sabotaged . | . . . . Overloaded Fab Kills . | . . . . Hacking | -11 -10 -9 -9 --------- Run | Yrd Mat Mat Min Machines Accessed 2 | . 2 . . Terminals 2 | . 2 . . Fabricators . | . . . . Repair Stations . | . . . . Recycling Units . | . . . . Scanalyzers . | . . . . Garrison Access . | . . . . Total Hacks 4 | . 4 . . Successful 3 | . 3 . . Failed 1 | . 1 . . Catastrophic . | . . . . Database Lockouts . | . . . . Manual . | . . . . Terminals 4 | . 4 . . Fabricators . | . . . . Repair Stations . | . . . . Recycling Units . | . . . . Scanalyzers . | . . . . Garrison Access . | . . . . Terminal Hacks 3 | . 3 . . Record 3 | . 3 . . Fabricator Hacks . | . . . . Repair Station Hacks . | . . . . Recycling Unit Hacks . | . . . . Scanalyzer . | . . . . Garrison Access Hacks . | . . . . Unauthorized Hacks . | . . . . Terminals . | . . . . Fabricators . | . . . . Repair Stations . | . . . . Recycling Units . | . . . . Scanalyzers . | . . . . Garrison Access . | . . . . Data Cores Recovered 1 | . 1 . . Used . | . . . . Hacking Detections . | . . . . Full Trace Events . | . . . . Feedback Events . | . . . . Feedback Blocked . | . . . . Robot Schematics Acquired . | . . . . Robots Built . | . . . . Authchips . | . . . . Time . | . . . . Total Robot Build Rating . | . . . . Part Schematics Acquired . | . . . . Parts Built . | . . . . Authchips . | . . . . Time . | . . . . Total Part Build Rating . | . . . . Part Studies Acquired . | . . . . Parts Repaired . | . . . . Time . | . . . . Parts Recycled . | . . . . Recycled Matter . | . . . . Retrieved Matter . | . . . . Retrieved Components . | . . . . Parts Scanalyzed . | . . . . Part Schematics Acquired . | . . . . Parts Damaged . | . . . . Bothacking | -11 -10 -9 -9 ------------ Run | Yrd Mat Mat Min Used RIF Installer . | . . . . Robots Hacked . | . . . . Non-combat . | . . . . Combat . | . . . . Robot Hacks Applied . | . . . . Relay Couplers Released . | . . . . Fabnet Peak Effective % . | . . . . Robots Rewired . | . . . . Allies Hacked . | . . . . Hacks Repelled . | . . . . Allies | -11 -10 -9 -9 -------- Run | Yrd Mat Mat Min Total Allies . | . . . . Largest Group . | . . . . Highest-Rated Group . | . . . . Highest-Rated Ally . | . . . . Total Orders . | . . . . Ally Attacks . | . . . . Total Damage . | . . . . Kills . | . . . . Allies Corrupted . | . . . . Allies Melted . | . . . . Intel | -11 -10 -9 -9 ------- Run | Yrd Mat Mat Min Active Infowar (turns) . | . . . . Robot Analysis Total . | . . . . Derelict Logs Recovered . | . . . . Drone Launches . | . . . . Drone Recoveries . | . . . . Exploration | -11 -10 -9 -9 ------------- Run | Yrd Mat Mat Min Turns Passed 1174 | 67 357 572 178 Spaces Moved 630 | 50 185 262 133 Core 91 | 18 . 3 70 Treads 455 | 32 185 238 . Legs . | . . . . Wheels 84 | . . 21 63 Hover . | . . . . Flight . | . . . . Fastest Speed 50 | 50 160 80 50 Average Speed 137 | 120 160 154 79 Slowest Speed 200 | 160 160 200 150 Overloaded Moves . | . . . . Propulsion Burnouts . | . . . . Robots Hopped . | . . . . Potential Cave-ins . | . . . . Cave-ins Triggered . | . . . . Exploration Rate (%) 22 | 4 40 26 21 Regions Visited 3 Branch Regions 1 Pre-discovered Areas . | . . . . Known Exits Taken . | . . . . Unknown Exits Taken 3 | 1 1 1 . Scrap Searched 1 | . . . 1 Spaces Dug 7 | . 7 . . Terrain Destroyed 114 | . 65 34 15 Melee . | . . . . Projectile 2 | . . 1 1 AOE 112 | . 65 33 14 Terrain Rammed . | . . . . Walls Destroyed . | . . . . Machines Disabled . | . . . . Actions | -11 -10 -9 -9 --------- Run | Yrd Mat Mat Min Total 776 | 57 217 334 168 Wait 7 | . . 3 4 Move 627 | 49 184 261 133 Hop . | . . . . Pick Up 19 | 4 6 7 2 Fast Attach . | . . . . Attach 19 | 4 3 8 4 Detach 1 | . . 1 . Swap 3 | . 1 2 . Drop . | . . . . Fire 100 | . 23 52 25 Melee . | . . . . Ram . | . . . . Kick . | . . . . Crush . | . . . . Escape Stasis . | . . . . Rewire . | . . . . Trap . | . . . . Miscellaneous . | . . . . Route ------- -11/Scrapyard -10/Materials -9/Materials -9/Mines History --------- Turn | Location | Event 4 | -11/Scrapyard | Discovered new exit (range 15) 68 | -11/Scrapyard | Entered Materials 304 | -10/Materials | Build established: Mutant 422 | -10/Materials | Discovered new exit (range 3) 425 | -10/Materials | Entered another Materials area 425 | -9/Materials | Evolved 2 slots: Utility x1, Weapon x1 985 | -9/Materials | Discovered new exit (range 16) 997 | -9/Materials | Entered Mines 1015 | -9/Mines | Assembled infested the area 1122 | -9/Mines | Lost 6 parts (1p2n1u2w) 1135 | -9/Mines | Core integrity fell below 50% 1169 | -9/Mines | System corruption reached 10% 1172 | -9/Mines | Core integrity fell below 20% 1175 | -9/Mines | Destroyed by as-50809 with Assembled Maul Last Messages --------------- Imp. Light Cannon destroyed. G-47 Trooper destroyed. System corrupted: Lgt. Assault Rifle rejected. Acquired Lgt. Assault Rifle. G-34 Mercenary destroyed. Acquired 49 matter. Acquired 50 matter. Acquired 27 matter. T-07 Excavator is excavating. Acquired 2 matter. T-07 Excavator is excavating. System corrupted: Component data lost. Lgt. Assault Rifle destroyed. Imp. Targeting Computer destroyed. System corrupted by crushing effect (+1). System corrupted by crushing effect (+5). Knocked back. Imp. Targeting Computer destroyed. System corrupted by crushing effect (+4). Knocked back. Map ----- +----------------------------------------------------+ | ??????????####?????????????????????????????????? | | ?????????## ##????????????????????????????????? | | ?????????# #########????????????????????????? | | ?????????? ?????????????????????????? | | ??????????# ????????????????????????????? | | ??????????# #??????????????????????????????? | | ??????????# #???????????????????????????????? | | ??????????# ###???????????????????????????????? | | ??????????# #?????????????????????????????????? | | ???????#### #?????????????????????????????????? | | ???????# #?????????????????????????????????? | | ???????# =#?????????????????????????????????? | | ???????# ##= #?????????????????????? ??????????? | | ??????????# #??????????????????? ?????????? | | ??????????#* #???????????????? ?????????? | | ??????????# #??????######## ????????? | | ??????????# #??????# ????????? | | ??????????# ###????# ????????? | | ??????????# #????# ###### #??????????????? | | ??????????# #???## #???????????????????????? | | ??????????### #???# #???????????????????????? | | ????????????# ###### ##??????????????????????? | | ????????????# #; a#??????????????????????? | | ????????????##### ## =%##?????????????????????? | | ????????????????# ## !| #?????????????????????? | | ????????????????# ### @a#####?????????????????? | | ???????????????## #### ## #?????????????????? | | ???????????????# #?##aa #?????????????????? | | ???????????????# ####!a ##?????????????????? | | ???????????????## # ##????????????????? | | ????????????????# ##???????????????? | | ????????????????# ##??????????????? | | ????????????????## # % ##?????????????? | | ?????????????????######### ##????????????? | | ????????????????????????## ##???????????? | | ????????????????????????# ## % #???????????? | | ???????????????????????# #### #???????????? | | ?????????????????????# #??# %#??????????? | | ????????????????????# ##??# #?????????? | | ???????????????????# #???# #?????????? | | ???????????????????# ???## ##?????????? | | ???????????????????## ????####??????????? | | ????????????????????### ??????????????????? | | ??????????????????????### #?????????????????? | | ????????????????????????## ##?????????????????? | | ?????????????????????????###???????????????????? | | ???????????????????????????????????????????????? | | ???????????????????????????????????????????????? | | ???????????????????????????????????????????????? | | ???????????????????????????????????????????????? | +----------------------------------------------------+ Best States ------------- Heat Dissipation 28 Energy Generation 10 Energy Capacity 125 Matter Stores 291 Matter Capacity 300 Sight Range 16 Terrain Scan Density 10 Evasion (%) 50 Targeting Accuracy 18 Recoil Reduction 2 Item Schematics ----------------- None Robot Schematics ------------------ None Fabricated ------------ Nothing Repaired ---------- Nothing Studied --------- None Alien Tech Used ----------------- None Achievements -------------- None Challenges ------------ None Game ------ Seed DeflectorDeepUnit Manual? 0 Play Time 00:08:40 Cumulative 261.8 hours Start 2026.04.11 @ 19:22:03 End 2026.04.11 @ 19:29:03 Sessions 1 Manual Loads 0 Difficulty Rogue Special Mode None Game No. 696 Rogue 694 Adventurer 2 Explorer 0 Win Type - Total 0 Types 0/0/0/0/0/0/0/0/0/0 Lore% 67 Gallery% 63 Achievement% 43 Wizard Run 0 Options --------- Layout 2 ASCII 0 Keyboard 0 Movement Mouse Keybinds 0 Fullscreen 1 Font 24/Smallcaps Map View 50x44 Zoom Use 0% Tactical HUD 0 Map Filters NONE Filters NONE Steam 1 RUN: dc1d442e-1f08-4006-8bdc-7bce8950d496